[Event "January 2 Early 2024"]
[Site "https://www.chess.com"]
[Date "2024.01.02"]
[Round "4"]
[White "Rodriguez Avila, Alvaro"]
[Black "Kubicka, Anna"]
[Result "1-0"]
[Board "171"]
[TimeControl "180+1"]
[WhiteFideId "24570249"]
[BlackFideId "1152254"]
[WhiteElo "2263"]
[BlackElo "2465"]
[WhiteTeam "ESP"]
[BlackTeam "POL"]
[WhiteClock "0:00:03"]
[BlackClock "0:00:00"]

1. e4 {[%clk 0:02:57]}  c5 {[%clk 0:02:59]} 2. Nf3 {[%clk 0:02:57]}  d6 {[%clk 0:03:00]} 3. d4 {[%clk 0:02:58]}  cxd4 {[%clk 0:03:01]} 4. Nxd4 {[%clk 0:02:58]}  Nf6 {[%clk 0:03:02]} 5. Nc3 {[%clk 0:02:59]}  a6 {[%clk 0:03:02]} 6. Bg5 {[%clk 0:02:59]}  Nbd7 {[%clk 0:03:02]} 7. Bc4 {[%clk 0:02:59]}  Qb6 {[%clk 0:02:57]} 8. Bb3 {[%clk 0:02:52]}  h6 {[%clk 0:02:56]} 9. Be3 {[%clk 0:02:48]}  Nc5 {[%clk 0:02:56]} 10. f3 {[%clk 0:02:41]}  Nxb3 {[%clk 0:02:55]} 11. axb3 {[%clk 0:02:40]}  Bd7 {[%clk 0:02:46]} 12. Qd2 {[%clk 0:02:40]}  Qc7 {[%clk 0:02:45]} 13. O-O {[%clk 0:02:24]}  Rc8 {[%clk 0:02:45]} 14. Rfd1 {[%clk 0:02:20]}  g6 {[%clk 0:02:44]} 15. h3 {[%clk 0:01:32]}  Bg7 {[%clk 0:02:43]} 16. f4 {[%clk 0:01:31]}  O-O {[%clk 0:02:41]} 17. f5 {[%clk 0:01:31]}  g5 {[%clk 0:02:41]} 18. Qe2 {[%clk 0:01:28]}  Bc6 {[%clk 0:02:32]} 19. Bf2 {[%clk 0:01:16]}  b5 {[%clk 0:02:24]} 20. Rxa6 {[%clk 0:01:13]}  Bb7 {[%clk 0:02:24]} 21. Ncxb5 {[%clk 0:01:09]}  Bxa6 {[%clk 0:02:21]} 22. c4 {[%clk 0:00:36]}  Bxb5 {[%clk 0:02:18]} 23. Nxb5 {[%clk 0:00:37]}  Qb7 {[%clk 0:02:18]} 24. Re1 {[%clk 0:00:37]}  Ra8 {[%clk 0:02:13]} 25. Bd4 {[%clk 0:00:31]}  Nd7 {[%clk 0:02:08]} 26. Bxg7 {[%clk 0:00:19]}  Kxg7 {[%clk 0:02:08]} 27. h4 {[%clk 0:00:18]}  Nf6 {[%clk 0:01:55]} 28. hxg5 {[%clk 0:00:19]}  hxg5 {[%clk 0:01:56]} 29. Qd2 {[%clk 0:00:13]}  Nxe4 {[%clk 0:01:52]} 30. Rxe4 {[%clk 0:00:14]}  Ra1+ {[%clk 0:01:36]} 31. Re1 {[%clk 0:00:13]}  Rxe1+ {[%clk 0:01:35]} 32. Qxe1 {[%clk 0:00:14]}  Rh8 {[%clk 0:01:31]} 33. f6+ {[%clk 0:00:11]}  exf6 {[%clk 0:01:28]} 34. Qe3 {[%clk 0:00:09]}  Rh4 {[%clk 0:01:21]} 35. Nxd6 {[%clk 0:00:05]}  Qd7 {[%clk 0:01:07]} 36. c5 {[%clk 0:00:05]}  Qg4 {[%clk 0:01:04]} 37. Ne8+ {[%clk 0:00:02]}  Kg6 {[%clk 0:00:58]} 38. Qd3+ {[%clk 0:00:02]}  Qe4 {[%clk 0:00:22]} 39. Qxe4+ {[%clk 0:00:03]}  Rxe4 {[%clk 0:00:23]} 40. Nd6 {[%clk 0:00:03]}  Re6 {[%clk 0:00:09]} 41. b4 {[%clk 0:00:03]}  f5 {[%clk 0:00:08]} 42. b5 {[%clk 0:00:03]}  Re2 {[%clk 0:00:07]} 43. c6 {[%clk 0:00:02]}  Rc2 {[%clk 0:00:07]} 44. c7 {[%clk 0:00:03]}  Rxc7 {[%clk 0:00:07]} 45. b6 {[%clk 0:00:03]}  Rc2 {[%clk 0:00:04]} 46. b4 {[%clk 0:00:02]}  Rb2 {[%clk 0:00:04]} 47. b5 {[%clk 0:00:02]}  Rb1+ {[%clk 0:00:04]} 48. Kf2 {[%clk 0:00:02]}  Rd1 {[%clk 0:00:03]} 49. b7 {[%clk 0:00:02]}  Rxd6 {[%clk 0:00:04]} 50. b8=Q {[%clk 0:00:03]}  Rf6 {[%clk 0:00:04]} 51. Qc8 {[%clk 0:00:02]}  f4 {[%clk 0:00:04]} 52. Qc5 {[%clk 0:00:03]}  g4 {[%clk 0:00:05]} 53. b6 {[%clk 0:00:03]}  Rf5 {[%clk 0:00:04]} 54. Qc2 {[%clk 0:00:03]}  Kg5 {[%clk 0:00:04]} 55. b7 {[%clk 0:00:04]}  g3+ {[%clk 0:00:03]} 56. Kf3 {[%clk 0:00:04]}  Re5 {[%clk 0:00:00]} 57. Qd3 {[%clk 0:00:03]} 1-0

[Event "January 2 Early 2024"]
[Site "https://www.chess.com"]
[Date "2024.01.02"]
[Round "4"]
[White "Cueto, Jonny"]
[Black "Dyulgerov, Volen"]
[Result "0-1"]
[Board "172"]
[TimeControl "180+1"]
[WhiteFideId "3300145"]
[BlackFideId "2918978"]
[WhiteElo "2257"]
[BlackElo "2461"]
[WhiteTeam "BOL"]
[BlackTeam "BUL"]
[WhiteClock "0:00:04"]
[BlackClock "0:00:19"]

1. d4 {[%clk 0:03:00]}  e5 {[%clk 0:02:59]} 2. dxe5 {[%clk 0:03:00]}  d6 {[%clk 0:02:59]} 3. exd6 {[%clk 0:03:00]}  Bxd6 {[%clk 0:02:59]} 4. g3 {[%clk 0:02:57]}  h5 {[%clk 0:02:57]} 5. h4 {[%clk 0:02:57]}  Nf6 {[%clk 0:02:57]} 6. Bg5 {[%clk 0:02:56]}  Nc6 {[%clk 0:02:57]} 7. c3 {[%clk 0:02:55]}  Bg4 {[%clk 0:02:53]} 8. Nd2 {[%clk 0:02:52]}  Bxg3 {[%clk 0:01:41]} 9. fxg3 {[%clk 0:02:25]}  Ne5 {[%clk 0:01:41]} 10. Ndf3 {[%clk 0:02:14]}  Qe7 {[%clk 0:01:35]} 11. Bxf6 {[%clk 0:01:53]}  gxf6 {[%clk 0:01:21]} 12. Qa4+ {[%clk 0:01:35]}  b5 {[%clk 0:01:13]} 13. Qa3 {[%clk 0:01:25]}  b4 {[%clk 0:00:57]} 14. Qxb4 {[%clk 0:01:02]}  Nd3+ {[%clk 0:00:57]} 15. Kd1 {[%clk 0:00:54]}  Nxb4 {[%clk 0:00:51]} 16. cxb4 {[%clk 0:00:55]}  O-O-O+ {[%clk 0:00:51]} 17. Ke1 {[%clk 0:00:53]}  Qxb4+ {[%clk 0:00:47]} 18. Kf2 {[%clk 0:00:53]}  Rhe8 {[%clk 0:00:45]} 19. Nh3 {[%clk 0:00:43]}  Bxf3 {[%clk 0:00:39]} 20. exf3 {[%clk 0:00:27]}  Qd2+ {[%clk 0:00:37]} 21. Kg1 {[%clk 0:00:27]}  Qe3+ {[%clk 0:00:36]} 22. Kh2 {[%clk 0:00:21]}  Rd2+ {[%clk 0:00:34]} 23. Bg2 {[%clk 0:00:20]}  Qxf3 {[%clk 0:00:32]} 24. Nf4 {[%clk 0:00:20]}  Rg8 {[%clk 0:00:20]} 25. Nxh5 {[%clk 0:00:04]}  Qxg2# {[%clk 0:00:19]} 0-1

[Event "January 2 Early 2024"]
[Site "https://www.chess.com"]
[Date "2024.01.02"]
[Round "4"]
[White "Namitbir Singh Walia"]
[Black "Slavin, Alexey"]
[Result "1-0"]
[Board "173"]
[TimeControl "180+1"]
[WhiteFideId "35071068"]
[BlackFideId "24104388"]
[WhiteElo "2457"]
[BlackElo "2246"]
[WhiteTeam "IND"]
[BlackTeam "RUS"]
[WhiteClock "0:00:02"]
[BlackClock "0:00:00"]

1. e4 {[%clk 0:03:00]}  Nc6 {[%clk 0:02:58]} 2. Nf3 {[%clk 0:03:00]}  d6 {[%clk 0:02:59]} 3. d4 {[%clk 0:03:00]}  Nf6 {[%clk 0:02:59]} 4. Bd3 {[%clk 0:02:57]}  Bg4 {[%clk 0:02:59]} 5. c3 {[%clk 0:02:57]}  e5 {[%clk 0:03:00]} 6. d5 {[%clk 0:02:58]}  Ne7 {[%clk 0:03:00]} 7. h3 {[%clk 0:02:57]}  Bd7 {[%clk 0:03:00]} 8. c4 {[%clk 0:02:54]}  Ng6 {[%clk 0:02:59]} 9. g3 {[%clk 0:02:54]}  Be7 {[%clk 0:02:59]} 10. Nc3 {[%clk 0:02:54]}  Qc8 {[%clk 0:03:00]} 11. h4 {[%clk 0:02:43]}  h6 {[%clk 0:03:00]} 12. h5 {[%clk 0:02:42]}  Nf8 {[%clk 0:02:59]} 13. Be2 {[%clk 0:02:37]}  N8h7 {[%clk 0:02:53]} 14. Be3 {[%clk 0:02:35]}  a6 {[%clk 0:02:51]} 15. Qd3 {[%clk 0:02:28]}  O-O {[%clk 0:02:50]} 16. Nh4 {[%clk 0:02:16]}  Ng4 {[%clk 0:02:31]} 17. Bd2 {[%clk 0:02:00]}  Rb8 {[%clk 0:01:57]} 18. Nf5 {[%clk 0:01:55]}  Bxf5 {[%clk 0:01:54]} 19. exf5 {[%clk 0:01:56]}  Ngf6 {[%clk 0:01:53]} 20. g4 {[%clk 0:01:50]}  Nd7 {[%clk 0:01:51]} 21. Ne4 {[%clk 0:01:42]}  Qd8 {[%clk 0:01:51]} 22. Bd1 {[%clk 0:01:00]}  Ng5 {[%clk 0:01:50]} 23. f6 {[%clk 0:00:42]}  Bxf6 {[%clk 0:01:42]} 24. Bc2 {[%clk 0:00:39]}  Nxe4 {[%clk 0:01:18]} 25. Qxe4 {[%clk 0:00:40]}  Re8 {[%clk 0:01:18]} 26. Qh7+ {[%clk 0:00:38]}  Kf8 {[%clk 0:01:18]} 27. O-O-O {[%clk 0:00:18]}  b5 {[%clk 0:01:14]} 28. cxb5 {[%clk 0:00:15]}  Rxb5 {[%clk 0:01:06]} 29. Bc3 {[%clk 0:00:15]}  Rc5 {[%clk 0:00:58]} 30. Rhe1 {[%clk 0:00:14]}  Rxc3 {[%clk 0:00:53]} 31. bxc3 {[%clk 0:00:13]}  Nc5 {[%clk 0:00:48]} 32. f4 {[%clk 0:00:13]}  Ke7 {[%clk 0:00:40]} 33. fxe5 {[%clk 0:00:11]}  Bxe5 {[%clk 0:00:40]} 34. Qf5 {[%clk 0:00:07]}  Nd7 {[%clk 0:00:36]} 35. Rd2 {[%clk 0:00:06]}  Kf8 {[%clk 0:00:34]} 36. Rf2 {[%clk 0:00:07]}  Qg5+ {[%clk 0:00:30]} 37. Qxg5 {[%clk 0:00:06]}  hxg5 {[%clk 0:00:31]} 38. Bf5 {[%clk 0:00:06]}  Nb6 {[%clk 0:00:29]} 39. Rd1 {[%clk 0:00:04]}  Kg8 {[%clk 0:00:27]} 40. Kc2 {[%clk 0:00:03]}  Nc4 {[%clk 0:00:23]} 41. Bd3 {[%clk 0:00:03]}  Ne3+ {[%clk 0:00:22]} 42. Kd2 {[%clk 0:00:04]}  Nxd1 {[%clk 0:00:19]} 43. Kxd1 {[%clk 0:00:04]}  Bxc3 {[%clk 0:00:19]} 44. Bxa6 {[%clk 0:00:05]}  Ra8 {[%clk 0:00:17]} 45. Bc4 {[%clk 0:00:06]}  Be5 {[%clk 0:00:17]} 46. Bb3 {[%clk 0:00:06]}  Kf8 {[%clk 0:00:14]} 47. Rc2 {[%clk 0:00:06]}  Ke7 {[%clk 0:00:15]} 48. Rxc7+ {[%clk 0:00:06]}  Kf8 {[%clk 0:00:16]} 49. Ke2 {[%clk 0:00:05]}  Ra5 {[%clk 0:00:14]} 50. Kd3 {[%clk 0:00:05]}  Rb5 {[%clk 0:00:09]} 51. Rc4 {[%clk 0:00:02]}  Rb8 {[%clk 0:00:09]} 52. Kc2 {[%clk 0:00:02]}  Rb5 {[%clk 0:00:09]} 53. a4 {[%clk 0:00:02]}  Ra5 {[%clk 0:00:08]} 54. Rc8+ {[%clk 0:00:02]}  Ke7 {[%clk 0:00:08]} 55. Rc7+ {[%clk 0:00:03]}  Kf8 {[%clk 0:00:08]} 56. Rb7 {[%clk 0:00:03]}  Bd4 {[%clk 0:00:05]} 57. Rb4 {[%clk 0:00:02]}  Bc5 {[%clk 0:00:05]} 58. Rb7 {[%clk 0:00:03]}  Kg8 {[%clk 0:00:04]} 59. Kd3 {[%clk 0:00:03]}  Ra7 {[%clk 0:00:04]} 60. Rb8+ {[%clk 0:00:03]}  Kh7 {[%clk 0:00:04]} 61. Kc4 {[%clk 0:00:04]}  g6 {[%clk 0:00:02]} 62. Bc2 {[%clk 0:00:04]}  Kg7 {[%clk 0:00:01]} 63. hxg6 {[%clk 0:00:04]}  fxg6 {[%clk 0:00:01]} 64. Kb5 {[%clk 0:00:04]}  Kf6 {[%clk 0:00:01]} 65. a5 {[%clk 0:00:04]}  Ke5 {[%clk 0:00:01]} 66. a6 {[%clk 0:00:03]}  Kxd5 {[%clk 0:00:01]} 67. Bxg6 {[%clk 0:00:03]}  Ke5 {[%clk 0:00:01]} 68. Bf5 {[%clk 0:00:02]}  Kf4 {[%clk 0:00:00]} 69. Bc8 {[%clk 0:00:02]} 1-0

[Event "January 2 Early 2024"]
[Site "https://www.chess.com"]
[Date "2024.01.02"]
[Round "4"]
[White "Reprintsev, Alexander"]
[Black "Gottstein, Claudius-Thomas"]
[Result "1-0"]
[Board "174"]
[TimeControl "180+1"]
[WhiteFideId "14100541"]
[BlackFideId "4653327"]
[WhiteElo "2457"]
[BlackElo "2228"]
[WhiteTeam "UKR"]
[BlackTeam "GER"]
[WhiteClock "0:02:10"]
[BlackClock "0:02:08"]

1. e4 {[%clk 0:03:00]}  Nf6 {[%clk 0:02:56]} 2. e5 {[%clk 0:03:00]}  Nd5 {[%clk 0:02:56]} 3. d4 {[%clk 0:03:00]}  d6 {[%clk 0:02:56]} 4. c4 {[%clk 0:02:58]}  Nb6 {[%clk 0:02:56]} 5. f4 {[%clk 0:02:59]}  dxe5 {[%clk 0:02:56]} 6. fxe5 {[%clk 0:03:00]}  Nc6 {[%clk 0:02:56]} 7. Be3 {[%clk 0:02:59]}  Bf5 {[%clk 0:02:55]} 8. Nf3 {[%clk 0:02:54]}  e6 {[%clk 0:02:55]} 9. Nc3 {[%clk 0:02:54]}  Be7 {[%clk 0:02:55]} 10. Bd3 {[%clk 0:02:52]}  Bg6 {[%clk 0:02:39]} 11. O-O {[%clk 0:02:49]}  Qd7 {[%clk 0:02:38]} 12. d5 {[%clk 0:02:30]}  Bxd3 {[%clk 0:02:18]} 13. Qxd3 {[%clk 0:02:22]}  exd5 {[%clk 0:02:17]} 14. cxd5 {[%clk 0:02:20]}  Nb4 {[%clk 0:02:18]} 15. Qe4 {[%clk 0:02:12]}  N4xd5 {[%clk 0:02:17]} 16. Rad1 {[%clk 0:02:11]}  c6 {[%clk 0:02:12]} 17. Bxb6 {[%clk 0:02:11]}  a6 {[%clk 0:02:08]} 18. Nxd5 {[%clk 0:02:10]} 1-0

[Event "January 2 Early 2024"]
[Site "https://www.chess.com"]
[Date "2024.01.02"]
[Round "4"]
[White "Lye, Sverre"]
[Black "Gruzman, Ilya"]
[Result "1-0"]
[Board "175"]
[TimeControl "180+1"]
[WhiteFideId "1539353"]
[BlackFideId "2812703"]
[WhiteElo "2214"]
[BlackElo "2454"]
[WhiteTeam "NOR"]
[BlackTeam "ISR"]
[WhiteClock "0:00:50"]
[BlackClock "0:01:11"]

1. e4 {[%clk 0:02:55]}  c5 {[%clk 0:03:00]} 2. b3 {[%clk 0:02:54]}  e6 {[%clk 0:02:59]} 3. Bb2 {[%clk 0:02:55]}  d5 {[%clk 0:02:59]} 4. exd5 {[%clk 0:02:55]}  exd5 {[%clk 0:03:00]} 5. d4 {[%clk 0:02:56]}  Nc6 {[%clk 0:03:00]} 6. Nf3 {[%clk 0:02:55]}  Nf6 {[%clk 0:03:00]} 7. Be2 {[%clk 0:02:47]}  Bd6 {[%clk 0:02:59]} 8. dxc5 {[%clk 0:02:46]}  Bxc5 {[%clk 0:03:00]} 9. O-O {[%clk 0:02:46]}  Be6 {[%clk 0:03:00]} 10. Nbd2 {[%clk 0:02:45]}  O-O {[%clk 0:03:00]} 11. c4 {[%clk 0:02:45]}  d4 {[%clk 0:02:57]} 12. Bd3 {[%clk 0:02:27]}  Rc8 {[%clk 0:02:53]} 13. a3 {[%clk 0:02:20]}  a5 {[%clk 0:02:53]} 14. h3 {[%clk 0:02:17]}  Qd7 {[%clk 0:02:48]} 15. Ne4 {[%clk 0:02:17]}  Nxe4 {[%clk 0:02:47]} 16. Bxe4 {[%clk 0:02:18]}  Rcd8 {[%clk 0:02:45]} 17. Qd2 {[%clk 0:02:11]}  Bf5 {[%clk 0:02:36]} 18. Rfe1 {[%clk 0:02:08]}  Bxe4 {[%clk 0:02:36]} 19. Rxe4 {[%clk 0:02:06]}  Rfe8 {[%clk 0:02:33]} 20. Rxe8+ {[%clk 0:02:06]}  Rxe8 {[%clk 0:02:34]} 21. Rd1 {[%clk 0:02:04]}  f6 {[%clk 0:02:32]} 22. Re1 {[%clk 0:01:32]}  Rxe1+ {[%clk 0:02:30]} 23. Nxe1 {[%clk 0:01:33]}  Ne5 {[%clk 0:02:28]} 24. Nd3 {[%clk 0:01:30]}  Nxd3 {[%clk 0:02:28]} 25. Qxd3 {[%clk 0:01:30]}  Qd6 {[%clk 0:02:23]} 26. b4 {[%clk 0:01:26]}  axb4 {[%clk 0:02:23]} 27. axb4 {[%clk 0:01:27]}  Bxb4 {[%clk 0:02:24]} 28. Qxd4 {[%clk 0:01:25]}  Qxd4 {[%clk 0:02:23]} 29. Bxd4 {[%clk 0:01:26]}  Kf7 {[%clk 0:02:24]} 30. Kf1 {[%clk 0:01:24]}  Ke6 {[%clk 0:02:24]} 31. Ke2 {[%clk 0:01:24]}  Kd6 {[%clk 0:02:24]} 32. Kd3 {[%clk 0:01:24]}  Bc5 {[%clk 0:02:25]} 33. g3 {[%clk 0:01:19]}  b6 {[%clk 0:02:23]} 34. f3 {[%clk 0:01:16]}  Ke6 {[%clk 0:02:19]} 35. Bxc5 {[%clk 0:01:11]}  bxc5 {[%clk 0:02:19]} 36. Ke4 {[%clk 0:01:11]}  f5+ {[%clk 0:02:15]} 37. Kd3 {[%clk 0:01:10]}  g5 {[%clk 0:01:51]} 38. f4 {[%clk 0:01:09]}  Kf6 {[%clk 0:01:41]} 39. Kc3 {[%clk 0:00:57]}  h5 {[%clk 0:01:21]} 40. h4 {[%clk 0:00:49]}  gxf4 {[%clk 0:01:16]} 41. gxf4 {[%clk 0:00:49]}  Ke6 {[%clk 0:01:17]} 42. Kb3 {[%clk 0:00:50]}  Kd6 {[%clk 0:01:18]} 43. Ka4 {[%clk 0:00:50]}  Kc6 {[%clk 0:01:16]} 44. Ka5 {[%clk 0:00:51]}  Kc7 {[%clk 0:01:14]} 45. Kb5 {[%clk 0:00:50]}  Kd6 {[%clk 0:01:11]} 46. Kb6 {[%clk 0:00:50]} 1-0

[Event "January 2 Early 2024"]
[Site "https://www.chess.com"]
[Date "2024.01.02"]
[Round "4"]
[White "Franchini, Gabriele"]
[Black "Beydullayeva, Govhar"]
[Result "0-1"]
[Board "176"]
[TimeControl "180+1"]
[WhiteFideId "806790"]
[BlackFideId "13413015"]
[WhiteElo "2212"]
[BlackElo "2448"]
[WhiteTeam "ITA"]
[BlackTeam "AZE"]
[WhiteClock "0:00:13"]
[BlackClock "0:00:01"]

1. e4 {[%clk 0:03:00]}  c5 {[%clk 0:02:59]} 2. Nc3 {[%clk 0:02:59]}  d6 {[%clk 0:02:59]} 3. f4 {[%clk 0:02:58]}  g6 {[%clk 0:02:58]} 4. Nf3 {[%clk 0:02:59]}  Bg7 {[%clk 0:02:58]} 5. Bc4 {[%clk 0:02:59]}  e6 {[%clk 0:02:58]} 6. O-O {[%clk 0:02:56]}  Nc6 {[%clk 0:02:58]} 7. d4 {[%clk 0:02:55]}  Nxd4 {[%clk 0:02:46]} 8. Be3 {[%clk 0:02:55]}  Ne7 {[%clk 0:02:32]} 9. Nxd4 {[%clk 0:02:53]}  cxd4 {[%clk 0:02:24]} 10. Bxd4 {[%clk 0:02:54]}  O-O {[%clk 0:02:24]} 11. Bxg7 {[%clk 0:02:50]}  Kxg7 {[%clk 0:02:25]} 12. Kh1 {[%clk 0:02:35]}  Qb6 {[%clk 0:02:21]} 13. Bb3 {[%clk 0:02:29]}  Bd7 {[%clk 0:02:15]} 14. Qd2 {[%clk 0:02:16]}  Rad8 {[%clk 0:02:13]} 15. Rad1 {[%clk 0:02:15]}  Bb5 {[%clk 0:01:47]} 16. Rf3 {[%clk 0:02:05]}  Bc6 {[%clk 0:01:20]} 17. f5 {[%clk 0:01:49]}  Nxf5 {[%clk 0:00:33]} 18. exf5 {[%clk 0:01:36]}  Bxf3 {[%clk 0:00:33]} 19. f6+ {[%clk 0:01:33]}  Kxf6 {[%clk 0:00:30]} 20. Rf1 {[%clk 0:01:24]}  Kg7 {[%clk 0:00:29]} 21. Rxf3 {[%clk 0:01:23]}  d5 {[%clk 0:00:25]} 22. Ne2 {[%clk 0:01:17]}  e5 {[%clk 0:00:23]} 23. Bxd5 {[%clk 0:00:58]}  f5 {[%clk 0:00:20]} 24. c4 {[%clk 0:00:53]}  e4 {[%clk 0:00:19]} 25. Rh3 {[%clk 0:00:51]}  f4 {[%clk 0:00:14]} 26. Nxf4 {[%clk 0:00:42]}  e3 {[%clk 0:00:10]} 27. Qc3+ {[%clk 0:00:38]}  Rf6 {[%clk 0:00:08]} 28. Rxe3 {[%clk 0:00:25]}  Kf8 {[%clk 0:00:07]} 29. Qe5 {[%clk 0:00:16]}  Qd6 {[%clk 0:00:02]} 30. Ne6+ {[%clk 0:00:14]}  Qxe6 {[%clk 0:00:01]} 31. Qxe6 {[%clk 0:00:13]}  Rf1# {[%clk 0:00:01]} 0-1

[Event "January 2 Early 2024"]
[Site "https://www.chess.com"]
[Date "2024.01.02"]
[Round "4"]
[White "RaneshRatnesan"]
[Black "Gatterer, Florian"]
[Result "1-0"]
[Board "177"]
[TimeControl "180+1"]
[BlackFideId "811688"]
[WhiteElo "2212"]
[BlackElo "2448"]
[BlackTeam "ITA"]
[WhiteClock "0:00:09"]
[BlackClock "0:00:00"]

1. d4 {[%clk 0:03:00]}  Nf6 {[%clk 0:02:56]} 2. c4 {[%clk 0:03:00]}  e6 {[%clk 0:02:56]} 3. Nc3 {[%clk 0:02:59]}  Bb4 {[%clk 0:02:55]} 4. a3 {[%clk 0:02:59]}  Bxc3+ {[%clk 0:02:54]} 5. bxc3 {[%clk 0:03:00]}  c5 {[%clk 0:02:54]} 6. f3 {[%clk 0:03:00]}  O-O {[%clk 0:02:48]} 7. e3 {[%clk 0:02:44]}  d6 {[%clk 0:02:46]} 8. Bd3 {[%clk 0:02:29]}  Nc6 {[%clk 0:02:46]} 9. Ne2 {[%clk 0:02:29]}  b6 {[%clk 0:02:46]} 10. O-O {[%clk 0:02:29]}  Ba6 {[%clk 0:02:46]} 11. e4 {[%clk 0:02:16]}  h6 {[%clk 0:02:39]} 12. Ng3 {[%clk 0:01:33]}  e5 {[%clk 0:02:21]} 13. d5 {[%clk 0:01:28]}  Ne7 {[%clk 0:02:19]} 14. f4 {[%clk 0:01:26]}  exf4 {[%clk 0:02:17]} 15. Bxf4 {[%clk 0:01:27]}  Ng6 {[%clk 0:02:17]} 16. Nf5 {[%clk 0:01:23]}  Nxf4 {[%clk 0:02:08]} 17. Rxf4 {[%clk 0:01:24]}  Nh7 {[%clk 0:01:58]} 18. Qe2 {[%clk 0:01:16]}  f6 {[%clk 0:01:52]} 19. Nh4 {[%clk 0:01:07]}  g5 {[%clk 0:01:42]} 20. Rg4 {[%clk 0:01:07]}  Bc8 {[%clk 0:01:35]} 21. Nf5 {[%clk 0:01:06]}  Bxf5 {[%clk 0:01:32]} 22. exf5 {[%clk 0:01:07]}  Re8 {[%clk 0:01:30]} 23. Re4 {[%clk 0:00:47]}  Rxe4 {[%clk 0:01:23]} 24. Qxe4 {[%clk 0:00:47]}  Nf8 {[%clk 0:01:10]} 25. Re1 {[%clk 0:00:44]}  Qd7 {[%clk 0:01:10]} 26. h4 {[%clk 0:00:36]}  a6 {[%clk 0:00:55]} 27. hxg5 {[%clk 0:00:34]}  hxg5 {[%clk 0:00:55]} 28. Kf2 {[%clk 0:00:33]}  Rb8 {[%clk 0:00:52]} 29. Re3 {[%clk 0:00:23]}  b5 {[%clk 0:00:49]} 30. Qg4 {[%clk 0:00:16]}  Re8 {[%clk 0:00:45]} 31. Re6 {[%clk 0:00:07]}  Nxe6 {[%clk 0:00:31]} 32. fxe6 {[%clk 0:00:08]}  Qg7 {[%clk 0:00:23]} 33. cxb5 {[%clk 0:00:07]}  axb5 {[%clk 0:00:22]} 34. Bxb5 {[%clk 0:00:07]}  f5 {[%clk 0:00:23]} 35. Qe2 {[%clk 0:00:06]}  Re7 {[%clk 0:00:22]} 36. Bd7 {[%clk 0:00:06]}  Qe5 {[%clk 0:00:21]} 37. Qxe5 {[%clk 0:00:06]}  dxe5 {[%clk 0:00:21]} 38. a4 {[%clk 0:00:07]}  Kg7 {[%clk 0:00:13]} 39. a5 {[%clk 0:00:07]}  Kf6 {[%clk 0:00:12]} 40. a6 {[%clk 0:00:08]}  Rh7 {[%clk 0:00:12]} 41. a7 {[%clk 0:00:06]}  Rh8 {[%clk 0:00:12]} 42. d6 {[%clk 0:00:07]}  Ra8 {[%clk 0:00:09]} 43. e7 {[%clk 0:00:07]}  Rxa7 {[%clk 0:00:06]} 44. e8=Q {[%clk 0:00:08]}  Ra2+ {[%clk 0:00:06]} 45. Kg1 {[%clk 0:00:08]}  e4 {[%clk 0:00:06]} 46. Qe6+ {[%clk 0:00:08]}  Kg7 {[%clk 0:00:00]} 47. Qxf5 {[%clk 0:00:09]} 1-0

[Event "January 2 Early 2024"]
[Site "https://www.chess.com"]
[Date "2024.01.02"]
[Round "4"]
[White "Montano Vicente, Guadalupe"]
[Black "Micic, Aleksa"]
[Result "0-1"]
[Board "180"]
[TimeControl "180+1"]
[WhiteFideId "5181399"]
[BlackFideId "989940"]
[WhiteElo "2187"]
[BlackElo "2439"]
[WhiteTeam "MEX"]
[BlackTeam "SRB"]
[WhiteClock "0:00:12"]
[BlackClock "0:00:18"]

1. d4 {[%clk 0:03:00]}  Nf6 {[%clk 0:02:59]} 2. c4 {[%clk 0:02:58]}  e6 {[%clk 0:02:58]} 3. Nf3 {[%clk 0:02:53]}  d5 {[%clk 0:02:58]} 4. Nc3 {[%clk 0:02:52]}  dxc4 {[%clk 0:02:57]} 5. e4 {[%clk 0:02:51]}  Bb4 {[%clk 0:02:53]} 6. e5 {[%clk 0:02:47]}  Nd5 {[%clk 0:02:50]} 7. Bd2 {[%clk 0:02:46]}  Nb6 {[%clk 0:02:42]} 8. Qc2 {[%clk 0:02:40]}  Nc6 {[%clk 0:02:40]} 9. a3 {[%clk 0:02:24]}  Be7 {[%clk 0:02:34]} 10. Be3 {[%clk 0:02:19]}  Na5 {[%clk 0:02:31]} 11. Be2 {[%clk 0:02:16]}  Bd7 {[%clk 0:02:26]} 12. O-O {[%clk 0:02:14]}  Bc6 {[%clk 0:02:25]} 13. Nd2 {[%clk 0:02:05]}  Qd7 {[%clk 0:02:07]} 14. Rac1 {[%clk 0:01:34]}  O-O {[%clk 0:02:03]} 15. Nce4 {[%clk 0:01:26]}  Nb3 {[%clk 0:01:56]} 16. Nxb3 {[%clk 0:01:21]}  cxb3 {[%clk 0:01:54]} 17. Qb1 {[%clk 0:01:19]}  Nd5 {[%clk 0:01:48]} 18. Nd2 {[%clk 0:01:15]}  Nxe3 {[%clk 0:01:46]} 19. fxe3 {[%clk 0:01:12]}  Bg5 {[%clk 0:01:46]} 20. Qd3 {[%clk 0:01:06]}  a6 {[%clk 0:01:31]} 21. Qxb3 {[%clk 0:01:02]}  Rad8 {[%clk 0:01:15]} 22. Nf3 {[%clk 0:00:43]}  Be7 {[%clk 0:01:10]} 23. Rc3 {[%clk 0:00:40]}  Bd5 {[%clk 0:01:04]} 24. Bc4 {[%clk 0:00:38]}  Bxc4 {[%clk 0:00:51]} 25. Qxc4 {[%clk 0:00:37]}  c6 {[%clk 0:00:48]} 26. Rfc1 {[%clk 0:00:31]}  Qd5 {[%clk 0:00:46]} 27. Qxd5 {[%clk 0:00:26]}  Rxd5 {[%clk 0:00:47]} 28. e4 {[%clk 0:00:25]}  Rd7 {[%clk 0:00:46]} 29. Rc4 {[%clk 0:00:21]}  Rfd8 {[%clk 0:00:45]} 30. b4 {[%clk 0:00:19]}  g5 {[%clk 0:00:45]} 31. h3 {[%clk 0:00:18]}  Kg7 {[%clk 0:00:42]} 32. Kf2 {[%clk 0:00:17]}  Ra8 {[%clk 0:00:31]} 33. Ke3 {[%clk 0:00:16]}  a5 {[%clk 0:00:31]} 34. R1c3 {[%clk 0:00:15]}  axb4 {[%clk 0:00:31]} 35. axb4 {[%clk 0:00:16]}  Ra4 {[%clk 0:00:28]} 36. Rb3 {[%clk 0:00:16]}  Rc7 {[%clk 0:00:25]} 37. g4 {[%clk 0:00:16]}  b5 {[%clk 0:00:24]} 38. Rc2 {[%clk 0:00:13]}  Rxb4 {[%clk 0:00:24]} 39. Rxb4 {[%clk 0:00:13]}  Bxb4 {[%clk 0:00:24]} 40. Nxg5 {[%clk 0:00:12]}  Be7 {[%clk 0:00:21]} 41. Nf3 {[%clk 0:00:12]}  b4 {[%clk 0:00:22]} 42. Rb2 {[%clk 0:00:12]}  Ra7 {[%clk 0:00:21]} 43. Rb3 {[%clk 0:00:12]}  Ra3 {[%clk 0:00:19]} 44. Nd2 {[%clk 0:00:12]}  Bg5+ {[%clk 0:00:18]} 45. Kd3 {[%clk 0:00:12]}  Bxd2 {[%clk 0:00:17]} 46. Rxa3 {[%clk 0:00:12]}  bxa3 {[%clk 0:00:17]} 47. Kxd2 {[%clk 0:00:13]}  a2 {[%clk 0:00:17]} 48. Kc2 {[%clk 0:00:12]}  a1=Q {[%clk 0:00:18]} 0-1